[Event "NJSK 2023 Meisjes C"]
[Site "Almelo, Netherlands"]
[Date "2023.05.06"]
[Round "7.6"]
[White "Hardeman, Imara"]
[Black "Luong, Thao"]
[Result "0-1"]
[TimeControl "90min/40moves + 30min + 30sec/move"]
[WhiteElo "920"]
[BlackElo "804"]

1. e4 {[%clk 01:31:00]} e5 {[%clk 01:30:57]} {[%emt 00:00:04]} 2. Nf3 {[%clk
01:31:27]} {[%emt 00:00:03]} Nc6 {[%clk 01:31:22]} {[%emt 00:00:05]} 3. c3
{[%clk 01:31:54]} {[%emt 00:00:03]} d5 {[%clk 01:31:25]} {[%emt 00:00:27]} 4.
Qa4 {[%clk 01:32:18]} {[%emt 00:00:06]} Bd7 {[%clk 01:31:01]} {[%emt 00:00:53]}
5. d3 {[%clk 01:26:36]} {[%emt 00:06:12]} Nd4 {[%clk 01:28:27]} {[%emt
00:03:04]} 6. Qd1 {[%clk 01:26:43]} {[%emt 00:00:23]} Nxf3+ {[%clk 01:27:15]}
{[%emt 00:01:42]} 7. Qxf3 {[%clk 01:26:53]} {[%emt 00:00:21]} Bc6 {[%clk
01:26:29]} {[%emt 00:01:16]} 8. Be2 {[%clk 01:25:17]} {[%emt 00:02:06]} Nf6
{[%clk 01:26:19]} {[%emt 00:00:40]} 9. Nd2 {[%clk 01:20:38]} {[%emt 00:05:09]}
Bc5 {[%clk 01:22:25]} {[%emt 00:04:24]} 10. O-O {[%clk 01:18:03]} {[%emt
00:03:05]} Qd6 {[%clk 01:22:08]} {[%emt 00:00:47]} 11. b4 {[%clk 01:14:15]}
{[%emt 00:04:19]} Bb6 {[%clk 01:22:32]} {[%emt 00:00:06]} 12. a3 {[%clk
01:04:26]} {[%emt 00:10:19]} a5 {[%clk 01:21:24]} {[%emt 00:01:37]} 13. Bb2
{[%clk 01:03:30]} {[%emt 00:01:26]} axb4 {[%clk 01:20:05]} {[%emt 00:01:48]} 14.
axb4 {[%clk 01:03:36]} {[%emt 00:00:25]} O-O {[%clk 01:20:03]} {[%emt
00:00:31]} 15. Ba3 {[%clk 00:58:58]} {[%emt 00:05:09]} Qd7 {[%clk 01:17:47]}
{[%emt 00:02:46]} 16. b5 {[%clk 00:58:21]} {[%emt 00:01:08]} Bxb5 {[%clk
01:11:01]} {[%emt 00:07:15]} 17. Bxf8 {[%clk 00:58:35]} {[%emt 00:00:16]} Rxf8
{[%clk 01:11:16]} {[%emt 00:00:15]} 18. exd5 {[%clk 00:58:07]} {[%emt
00:00:58]} Qxd5 {[%clk 01:11:05]} {[%emt 00:00:40]} 19. Qxd5 {[%clk 00:58:23]}
{[%emt 00:00:15]} Nxd5 {[%clk 01:11:28]} {[%emt 00:00:06]} 20. c4 {[%clk
00:57:51]} {[%emt 00:01:02]} Nc3 {[%clk 01:11:16]} {[%emt 00:00:41]} 21. cxb5
{[%clk 00:57:31]} {[%emt 00:00:51]} Nxe2+ {[%clk 01:11:37]} {[%emt 00:00:09]}
22. Kh1 {[%clk 00:57:54]} {[%emt 00:00:08]} Nf4 {[%clk 01:11:22]} {[%emt
00:00:43]} 23. Nc4 {[%clk 00:56:34]} {[%emt 00:01:53]} Bd4 {[%clk 01:08:59]}
{[%emt 00:02:53]} 24. Ra3 {[%clk 00:56:26]} {[%emt 00:00:39]} Bc5 {[%clk
01:07:52]} {[%emt 00:01:36]} 25. Rb3 {[%clk 00:56:20]} {[%emt 00:00:37]} Rd8
{[%clk 01:07:55]} {[%emt 00:00:26]} 26. Nxe5 {[%clk 00:56:20]} {[%emt
00:00:31]} f6 {[%clk 01:07:16]} {[%emt 00:01:10]} 27. Ng4 {[%clk 00:55:41]}
{[%emt 00:01:09]} h5 {[%clk 01:06:13]} {[%emt 00:01:32]} 28. Ne3 {[%clk
00:55:57]} {[%emt 00:00:14]} Nxd3 {[%clk 01:06:03]} {[%emt 00:00:39]} 29. Kg1
{[%clk 00:54:16]} {[%emt 00:02:12]} Nf4 {[%clk 01:03:49]} {[%emt 00:02:44]} 30.
g3 {[%clk 00:52:09]} {[%emt 00:02:37]} Ne2+ {[%clk 01:03:03]} {[%emt 00:01:15]}
31. Kg2 {[%clk 00:52:01]} {[%emt 00:00:38]} Rd2 {[%clk 01:03:06]} {[%emt
00:00:26]} 32. Nc4 {[%clk 00:49:46]} {[%emt 00:02:46]} Rc2 {[%clk 01:01:49]}
{[%emt 00:01:42]} 33. Ne3 {[%clk 00:48:58]} {[%emt 00:01:23]} Bxe3 {[%clk
01:00:43]} {[%emt 00:01:36]} 34. Rxe3 {[%clk 00:48:40]} {[%emt 00:00:49]} Nc3
{[%clk 01:00:44]} {[%emt 00:00:24]} 35. Re8+ {[%clk 00:48:19]} {[%emt
00:00:57]} Kh7 {[%clk 01:00:41]} {[%emt 00:00:30]} 36. Rb8 {[%clk 00:48:33]}
{[%emt 00:00:17]} b6 {[%clk 01:00:32]} {[%emt 00:00:41]} 37. Rb7 {[%clk
00:47:35]} {[%emt 00:01:28]} Nxb5 {[%clk 01:00:44]} {[%emt 00:00:17]} 38. Rd1
{[%clk 00:47:48]} {[%emt 00:00:18]} Nd6 {[%clk 00:58:35]} {[%emt 00:02:39]} 39.
Ra7 {[%clk 00:47:37]} {[%emt 00:00:41]} b5 {[%clk 00:58:08]} {[%emt 00:00:57]}
40. Rb1 {[%clk 00:47:41]} {[%emt 00:00:25]} c5 {[%clk 00:57:53]} {[%emt
00:00:46]} 41. Ra6 {[%clk 00:45:13]} {[%emt 00:02:59]} Rd2 {[%clk 00:56:44]}
{[%emt 00:01:38]} 42. Kf3 {[%clk 00:40:00]} {[%emt 00:05:44]} b4 {[%clk
00:55:46]} {[%emt 00:01:27]} 43. Ke3 {[%clk 00:39:32]} {[%emt 00:00:59]} Rd4
{[%clk 00:53:28]} {[%emt 00:02:46]} 44. Rb3 {[%clk 00:37:32]} {[%emt 00:02:31]}
Re4+ {[%clk 00:52:02]} {[%emt 00:01:56]} 45. Kd2 {[%clk 00:37:13]} {[%emt
00:00:32]} Rd4+ {[%clk 00:51:05]} {[%emt 00:01:44]} 46. Rd3 {[%clk 00:36:23]}
{[%emt 00:01:20]} Nc4+ {[%clk 00:46:59]} {[%emt 00:04:36]} 47. Kc2 {[%clk
00:36:02]} {[%emt 00:00:52]} Na3+ {[%clk 00:45:42]} {[%emt 00:01:47]} 48. Kd2
{[%clk 00:32:52]} {[%emt 00:03:40]} Nc4+ {[%clk 00:45:41]} {[%emt 00:00:31]} 49.
Ke2 {[%clk 00:24:35]} {[%emt 00:08:47]} Re4+ {[%clk 00:43:10]} {[%emt
00:03:00]} 50. Kf3 {[%clk 00:22:43]} {[%emt 00:02:23]} Re1 {[%clk 00:42:42]}
{[%emt 00:00:57]} 51. Kf4 {[%clk 00:07:24]} {[%emt 00:15:50]} Ne5 {[%clk
00:40:12]} {[%emt 00:02:56]} 52. Rd5 {[%clk 00:03:20]} {[%emt 00:04:39]} b3
{[%clk 00:38:37]} {[%emt 00:02:05]} 53. Rd2 {[%clk 00:30:07]} {[%emt 00:03:43]}
Nc4 {[%clk 01:06:41]} {[%emt 00:02:26]} 54. Rd5 {[%clk 00:26:19]} {[%emt
00:04:18]} b2 {[%clk 01:06:46]} {[%emt 00:00:25]} 55. Rxh5+ {[%clk 00:26:32]}
{[%emt 00:00:16]} Kg6 {[%clk 01:06:43]} {[%emt 00:00:31]} 56. Rg5+ {[%clk
00:26:13]} {[%emt 00:00:51]} Kh6 {[%clk 01:06:31]} {[%emt 00:00:41]} 57. Kg4
{[%clk 00:19:17]} {[%emt 00:07:27]} Re4+ {[%clk 01:05:03]} {[%emt 00:01:57]} 58.
Kf5 {[%clk 00:18:51]} {[%emt 00:00:55]} Re5+ {[%clk 01:04:40]} {[%emt
00:00:53]} 59. Kf4 {[%clk 00:19:01]} {[%emt 00:00:20]} Rxg5 {[%clk 01:04:53]}
{[%emt 00:00:18]} 60. h4 {[%clk 00:18:03]} {[%emt 00:01:28]} Re5 {[%clk
01:03:51]} {[%emt 00:01:27]} 61. g4 {[%clk 00:16:48]} {[%emt 00:01:49]} Kh7
{[%clk 01:02:18]} {[%emt 00:02:01]} 62. Ra4 {[%clk 00:15:10]} {[%emt 00:02:10]}
b1=Q {[%clk 01:01:57]} {[%emt 00:00:51]} 63. Rxc4 {[%clk 00:15:25]} {[%emt
00:00:16]} Qf1 {[%clk 01:01:11]} {[%emt 00:01:15]} 64. Rc2 {[%clk 00:15:44]}
{[%emt 00:00:11]} Qd3 {[%clk 01:00:37]} {[%emt 00:00:47]} 65. Ra2 {[%clk
00:15:49]} {[%emt 00:00:41]} Qc4+ {[%clk 01:00:39]} {[%emt 00:00:29]} 0-1

[Event "NJSK 2023 Meisjes C"]
[Site "Almelo, Netherlands"]
[Date "2023.05.06"]
[Round "8.1"]
[White "Westerhof, Fleur"]
[Black "Hagen, Carlijn"]
[Result "1-0"]
[TimeControl "90min/40moves + 30min + 30sec/move"]
[WhiteElo "1743"]
[BlackElo "1132"]

1. e4 {[%clk 00:05:04]} {[%emt 00:00:01]} e5 {[%clk 00:05:05]} 2. Nf3 {[%clk
00:05:06]} {[%emt 00:00:01]} Nc6 {[%clk 00:05:07]} {[%emt 00:00:02]} 3. d4
{[%clk 00:05:07]} {[%emt 00:00:01]} exd4 {[%clk 00:05:07]} {[%emt 00:00:03]} 4.
Bc4 {[%clk 00:05:09]} {[%emt 00:00:02]} Be7 {[%clk 00:05:07]} {[%emt 00:00:03]}
5. c3 {[%clk 00:05:10]} {[%emt 00:00:01]} d6 {[%clk 00:04:42]} {[%emt
00:00:29]} 6. cxd4 {[%clk 00:05:11]} {[%emt 00:00:02]} Bg4 {[%clk 00:04:28]}
{[%emt 00:00:17]} 7. Be3 {[%clk 00:05:05]} {[%emt 00:00:08]} Nf6 {[%clk
00:04:21]} {[%emt 00:00:10]} 8. Nc3 {[%clk 00:05:06]} {[%emt 00:00:02]} O-O
{[%clk 00:04:22]} {[%emt 00:00:02]} 9. h3 {[%clk 00:04:56]} {[%emt 00:00:13]}
Bh5 {[%clk 00:04:22]} {[%emt 00:00:03]} 10. O-O {[%clk 00:04:55]} {[%emt
00:00:04]} h6 {[%clk 00:04:20]} {[%emt 00:00:05]} 11. Be2 {[%clk 00:04:06]}
{[%emt 00:00:52]} Re8 {[%clk 00:04:13]} {[%emt 00:00:11]} 12. e5 {[%clk
00:04:01]} {[%emt 00:00:07]} dxe5 {[%clk 00:04:09]} {[%emt 00:00:07]} 13. dxe5
{[%clk 00:04:03]} {[%emt 00:00:02]} Nh7 {[%clk 00:03:39]} {[%emt 00:00:33]} 14.
Bf4 {[%clk 00:03:47]} {[%emt 00:00:19]} Bc5 {[%clk 00:03:27]} {[%emt 00:00:15]}
15. Re1 {[%clk 00:03:26]} {[%emt 00:00:23]} Nf8 {[%clk 00:03:01]} {[%emt
00:00:29]} 16. Qb3 {[%clk 00:03:11]} {[%emt 00:00:19]} Bxf3 {[%clk 00:02:32]}
{[%emt 00:00:32]} 17. Bxf3 {[%clk 00:03:12]} {[%emt 00:00:02]} Qd4 {[%clk
00:02:19]} {[%emt 00:00:17]} 18. Bxc6 {[%clk 00:02:54]} {[%emt 00:00:21]} Qxf2+
{[%clk 00:01:58]} {[%emt 00:00:24]} 19. Kh1 {[%clk 00:02:55]} {[%emt 00:00:01]}
bxc6 {[%clk 00:01:59]} {[%emt 00:00:03]} 20. Rf1 {[%clk 00:02:40]} {[%emt
00:00:17]} Qh4 {[%clk 00:01:46]} {[%emt 00:00:15]} 21. Bh2 {[%clk 00:02:15]}
{[%emt 00:00:28]} Ne6 {[%clk 00:01:35]} {[%emt 00:00:16]} 22. Rad1 {[%clk
00:01:50]} {[%emt 00:00:28]} Rab8 {[%clk 00:01:24]} {[%emt 00:00:13]} 23. Qc2
{[%clk 00:01:43]} {[%emt 00:00:10]} Nd4 {[%clk 00:01:17]} {[%emt 00:00:10]} 24.
Qd2 {[%clk 00:01:36]} {[%emt 00:00:10]} Red8 {[%clk 00:01:06]} {[%emt
00:00:14]} 25. Qc1 {[%clk 00:01:23]} {[%emt 00:00:16]} Ne6 {[%clk 00:00:48]}
{[%emt 00:00:21]} 26. Rde1 {[%clk 00:01:06]} {[%emt 00:00:21]} Bb4 {[%clk
00:00:44]} {[%emt 00:00:07]} 27. a3 {[%clk 00:01:05]} {[%emt 00:00:04]} Be7
{[%clk 00:00:31]} {[%emt 00:00:15]} 28. Ne4 {[%clk 00:01:00]} {[%emt 00:00:08]}
Ng5 {[%clk 00:00:16]} {[%emt 00:00:18]} 29. Rf4 {[%clk 00:00:30]} {[%emt
00:00:33]} Qh5 {[%clk 00:00:13]} {[%emt 00:00:07]} 30. Ng3 {[%clk 00:00:27]}
{[%emt 00:00:06]} Qg6 {[%clk 00:00:13]} {[%emt 00:00:03]} 31. Nf5 {[%clk
00:00:28]} {[%emt 00:00:02]} Qe6 {[%clk 00:00:08]} {[%emt 00:00:07]} 32. Qxc6
{[%clk 00:00:11]} {[%emt 00:00:21]} Qd7 {[%clk 00:00:00]} {[%emt 00:00:08]} 1-0

[Event "NJSK 2023 Meisjes C"]
[Site "Almelo, Netherlands"]
[Date "2023.05.06"]
[Round "9.1"]
[White "Hagen, Carlijn"]
[Black "Westerhof, Fleur"]
[Result "0-1"]
[TimeControl "90min/40moves + 30min + 30sec/move"]
[WhiteElo "1132"]
[BlackElo "1743"]

1. d4 {[%clk 00:05:04]} {[%emt 00:00:02]} d5 {[%clk 00:05:05]} {[%emt
00:00:01]} 2. Bf4 {[%clk 00:05:06]} {[%emt 00:00:01]} Bf5 {[%clk 00:05:06]}
{[%emt 00:00:01]} 3. e3 {[%clk 00:05:07]} {[%emt 00:00:02]} e6 {[%clk
00:05:07]} {[%emt 00:00:02]} 4. Bd3 {[%clk 00:05:09]} {[%emt 00:00:01]} Bxd3
{[%clk 00:05:03]} {[%emt 00:00:06]} 5. Qxd3 {[%clk 00:05:11]} {[%emt 00:00:02]}
c6 {[%clk 00:04:57]} {[%emt 00:00:09]} 6. Nf3 {[%clk 00:05:12]} {[%emt
00:00:02]} Nf6 {[%clk 00:04:49]} {[%emt 00:00:11]} 7. c3 {[%clk 00:05:09]}
{[%emt 00:00:07]} Bd6 {[%clk 00:04:46]} {[%emt 00:00:05]} 8. Bg3 {[%clk
00:05:10]} {[%emt 00:00:02]} O-O {[%clk 00:04:36]} {[%emt 00:00:13]} 9. Nbd2
{[%clk 00:05:11]} {[%emt 00:00:02]} Na6 {[%clk 00:04:21]} {[%emt 00:00:18]} 10.
e4 {[%clk 00:04:43]} {[%emt 00:00:32]} dxe4 {[%clk 00:04:05]} {[%emt 00:00:19]}
11. Nxe4 {[%clk 00:04:44]} {[%emt 00:00:02]} Nxe4 {[%clk 00:03:57]} {[%emt
00:00:10]} 12. Qxe4 {[%clk 00:04:46]} {[%emt 00:00:02]} Nc7 {[%clk 00:03:47]}
{[%emt 00:00:13]} 13. Bxd6 {[%clk 00:04:29]} {[%emt 00:00:20]} Qxd6 {[%clk
00:03:48]} {[%emt 00:00:02]} 14. h4 {[%clk 00:04:30]} {[%emt 00:00:02]} Nd5
{[%clk 00:03:44]} {[%emt 00:00:08]} 15. h5 {[%clk 00:04:24]} {[%emt 00:00:09]}
h6 {[%clk 00:03:44]} {[%emt 00:00:03]} 16. O-O {[%clk 00:03:53]} {[%emt
00:00:34]} Qf4 {[%clk 00:03:44]} {[%emt 00:00:03]} 17. Qd3 {[%clk 00:03:43]}
{[%emt 00:00:13]} Nf6 {[%clk 00:03:41]} {[%emt 00:00:06]} 18. Rfe1 {[%clk
00:03:33]} {[%emt 00:00:13]} Nxh5 {[%emt 00:00:33]} 19. Re4 {[%clk 00:03:31]}
Qd6 {[%clk 00:03:12]} {[%emt 00:00:06]} 20. Rh4 {[%clk 00:03:16]} {[%emt
00:00:18]} Nf6 {[%clk 00:02:39]} {[%emt 00:00:36]} 21. Ne5 {[%clk 00:03:08]}
{[%emt 00:00:11]} Rad8 {[%clk 00:02:23]} {[%emt 00:00:19]} 22. Qg3 {[%clk
00:03:00]} {[%emt 00:00:11]} Kh7 {[%clk 00:02:13]} {[%emt 00:00:13]} 23. Re1
{[%clk 00:02:50]} {[%emt 00:00:13]} Nd7 {[%clk 00:01:59]} {[%emt 00:00:18]} 24.
Ree4 {[%clk 00:02:33]} {[%emt 00:00:19]} Nxe5 {[%clk 00:01:59]} {[%emt
00:00:04]} 25. Rxe5 {[%clk 00:02:33]} {[%emt 00:00:02]} f6 {[%clk 00:01:51]}
{[%emt 00:00:11]} 26. Qd3+ {[%clk 00:02:19]} {[%emt 00:00:17]} Kg8 {[%clk
00:01:40]} {[%emt 00:00:14]} 27. Re3 {[%clk 00:01:53]} {[%emt 00:00:29]} f5
{[%clk 00:01:36]} {[%emt 00:00:07]} 28. Rg3 {[%clk 00:01:49]} {[%emt 00:00:07]}
Rf6 {[%clk 00:01:28]} {[%emt 00:00:11]} 29. Qe3 {[%clk 00:01:49]} {[%emt
00:00:04]} Kf7 {[%clk 00:01:25]} {[%emt 00:00:06]} 30. Qe2 {[%clk 00:01:30]}
{[%emt 00:00:21]} f4 {[%clk 00:00:53]} {[%emt 00:00:36]} 31. Rf3 {[%clk
00:01:15]} {[%emt 00:00:17]} g5 {[%clk 00:00:54]} {[%emt 00:00:02]} 32. Rg4
{[%clk 00:00:56]} {[%emt 00:00:22]} Rg8 {[%clk 00:00:50]} {[%emt 00:00:07]} 33.
Rh3 {[%clk 00:00:53]} {[%emt 00:00:06]} Qd5 {[%clk 00:00:42]} {[%emt 00:00:11]}
34. Qd3 {[%clk 00:00:46]} {[%emt 00:00:10]} Qf5 {[%clk 00:00:40]} {[%emt
00:00:04]} 35. Qe2 {[%clk 00:00:32]} {[%emt 00:00:18]} Qg6 {[%clk 00:00:36]}
{[%emt 00:00:07]} 36. f3 {[%clk 00:00:25]} {[%emt 00:00:10]} h5 {[%clk
00:00:33]} {[%emt 00:00:05]} 37. Rxf4 {[%clk 00:00:11]} {[%emt 00:00:17]} Rxf4
{[%clk 00:00:32]} {[%emt 00:00:03]} 38. Qd2 {[%clk 00:00:09]} {[%emt 00:00:05]}
Rf6 {[%clk 00:00:28]} {[%emt 00:00:07]} 39. Qe1 {[%clk 00:00:07]} {[%emt
00:00:06]} g4 {[%clk 00:00:28]} {[%emt 00:00:03]} 40. fxg4 {[%clk 00:00:04]}
{[%emt 00:00:05]} hxg4 {[%clk 00:00:30]} {[%emt 00:00:01]} 41. Rh1 {[%clk
00:00:06]} {[%emt 00:00:01]} g3 {[%clk 00:00:25]} {[%emt 00:00:08]} 42. Rh3
{[%clk 00:00:08]} {[%emt 00:00:01]} Rg7 {[%clk 00:00:18]} {[%emt 00:00:10]} 43.
Qe3 {[%clk 00:00:08]} {[%emt 00:00:03]} Qb1+ {[%clk 00:00:19]} {[%emt
00:00:02]} 0-1